fUSD/lending_fUSD_20250202
["ID","MTS","AMOUNT","RATE_DAILY","PERIOD"]
[351294145,1738506898006,-480.23277462,0.00011779,2]
[351294146,1738506898016,-19.76722538,0.00011779,2]
[351294147,1738506898027,-500.0,0.00011779,2]
[351294148,1738506898038,-51.43277462,0.00011779,2]
[351294149,1738506898050,-448.56722538,0.00011779,2]
[351294150,1738506898062,-51.43277462,0.00011779,2]
[351294151,1738506898071,-696.89,0.00011779,2]
[351294152,1738506898080,-500.0,0.00011779,2]
[351294153,1738506898090,-500.0,0.00011779,2]
[351294154,1738506898100,-500.0,0.00011779,2]
[351294155,1738506898109,-1102.57,0.00011779,2]
[351294156,1738506898118,-967.41,0.00011779,2]
[351294157,1738506898128,-500.0,0.00011779,2]
[351294158,1738506898137,-123.48722538,0.00011779,2]
[351294159,1738506898155,-376.51277462,0.00011779,2]
[351294160,1738506898165,-123.48722538,0.00011779,2]
[351294161,1738506898178,-376.51277462,0.00011779,2]
[351294162,1738506898187,-123.48722538,0.0001178,2]
[351294163,1738506898199,-500.0,0.0001178,2]
[351294164,1738506898211,-127.15277462,0.0001178,2]
[351294165,1738506898220,-500.0,0.0001178,2]
[351294166,1738506898230,-180.58722538,0.0001178,2]
[351294167,1738506898242,-319.41277462,0.0001178,2]
[351294168,1738506898251,-180.58722538,0.0001178,2]
[351294169,1738506898264,-319.41277462,0.0001178,2]
[351294170,1738506898274,-500.0,0.0001178,2]
[351294171,1738506898283,-354.52722538,0.0001178,2]
[351294172,1738506898295,-500.0,0.0001178,2]
[351294173,1738506898337,-500.0,0.00011094,2]
[351294174,1738506898355,-500.0,0.00011368,2]
[351294175,1738506898366,-500.0,0.0001178,2]
[351294176,1738506898385,-500.0,0.00011231,2]
[351294177,1738506898395,-12.96277462,0.0001178,2]
[351294178,1738506898405,-253.29390312,0.0001178,2]
[351294179,1738506898414,-500.0,0.0001178,2]
[351294180,1738506898423,-500.0,0.0001178,2]
[351294181,1738506898432,-194.43888658,0.0001178,2]
[351294182,1738506898441,-47.80443568,0.0001178,2]
[351294183,1738506898460,-452.19556432,0.0001178,2]
[351294184,1738506898469,-1207.44,0.0001178,2]
[351294185,1738506898478,-535.33443568,0.0001178,2]
[351294186,1738506898489,-72.43556432,0.0001178,2]
[351294187,1738506898499,-427.56443568,0.0001178,2]
[351294188,1738506898515,-72.43556432,0.0001178,2]
[351294189,1738506898524,-427.56443568,0.0001178,2]
[351294190,1738506898536,-466.37556432,0.0001178,2]
[351294191,1738506898546,-33.62443568,0.0001178,2]
[351294192,1738506898565,-500.0,0.00011505,2]
[351294193,1738506898580,-382.75105262,0.0001178,2]
[351294194,1738506898589,-117.24894738,0.0001178,2]
[351294195,1738506898600,-382.75105262,0.0001178,2]
[351294196,1738506898609,-117.24894738,0.0001178,2]
[351294197,1738506898621,-500.0,0.0001178,2]
[351294198,1738506898647,-618.07285683,0.00011368,2]
[351294199,1738506898656,-165.80714317,0.0001178,2]
[351294200,1738506898667,-110.05390945,0.0001178,2]
[351294201,1738506898677,-425.42609055,0.0001178,2]
[351294202,1738506898688,-108.25390945,0.0001178,2]
[351294203,1738506898698,-904.83,0.0001178,2]
[351294204,1738506898707,-500.0,0.0001178,2]
[351294205,1738506898716,-500.0,0.0001178,2]
[351294206,1738506898726,-1199.7,0.0001178,2]
[351294207,1738506898735,-500.0,0.0001178,2]
[351294208,1738506898745,-500.0,0.0001178,2]
[351294209,1738506898755,-971.7,0.0001178,2]
[351294210,1738506898764,-500.0,0.0001178,2]
[351294211,1738506898774,-858.42,0.0001178,2]
[351294212,1738506898783,-488.59609055,0.0001178,2]
[351294213,1738506898795,-11.40390945,0.0001178,2]
[351294214,1738506898805,-488.59609055,0.0001178,2]
[351294215,1738506898817,-500.0,0.0001178,2]
[351294216,1738506898828,-55.58390945,0.0001178,2]
[351294217,1738506898838,-444.41609055,0.0001178,2]
[351294218,1738506898858,-377.96655744,0.00011642,2]
[351294219,1738506898867,-104.48390945,0.0001178,2]
[351294220,1738506898877,-17.54953311,0.0001178,2]
[351294221,1738506898890,-482.45046689,0.0001178,2]
[351294222,1738506898899,-71.73953311,0.0001178,2]
[351294223,1738506898920,-428.26046689,0.0001178,2]
[351294224,1738506898930,-71.73953311,0.0001178,2]
[351294225,1738506898943,-571.2,0.0001178,2]
[351294226,1738506898961,-357.06046689,0.0001178,2]
[351294227,1738506898971,-142.93953311,0.0001178,2]
[351294228,1738506898982,-500.0,0.0001178,2]
[351294229,1738506898997,-696.89,0.0001178,2]
[351294230,1738506899014,-500.0,0.0001178,2]
[351294231,1738506899029,-440.57046689,0.0001178,2]
[351294232,1738506899042,-59.42953311,0.0001178,2]
[351294233,1738506899057,-440.57046689,0.0001178,2]
[351294234,1738506899069,-59.42953311,0.0001178,2]
[351294235,1738506899083,-500.0,0.0001178,2]
[351294236,1738506899105,-500.0,0.0001178,2]
[351294237,1738506899118,-228.07046689,0.0001178,2]
[351294238,1738506899129,-440.87953311,0.0001178,2]
[351294239,1738506899141,-500.0,0.0001178,2]
[351294240,1738506899155,-500.0,0.0001178,2]
[351294241,1738506899169,-500.0,0.0001178,2]
[351294242,1738506899183,-346.89046689,0.0001178,2]
[351294243,1738506899195,-403.64861081,0.0001178,2]
[351294244,1738506899206,-616.9509223,0.0001178,2]
[351294245,1738506899230,-500.0,0.0001178,2]
[351294246,1738506899243,-477.6690777,0.0001178,2]
[351294247,1738506899254,-22.3309223,0.0001178,2]
[351294248,1738506899277,-477.6690777,0.0001178,2]
[351294249,1738506899288,-22.3309223,0.0001178,2]
[351294250,1738506899302,-477.6690777,0.0001178,2]
[351294251,1738506899313,-22.3309223,0.0001178,2]
[351294252,1738506899325,-500.0,0.0001178,2]
[351294253,1738506899339,-357.9990777,0.0001178,2]
[351294254,1738506899349,-849.4409223,0.0001178,2]
[351294255,1738506899368,-607.77,0.0001178,2]
[351294256,1738506899382,-421.3590777,0.0001178,2]
[351294257,1738506899394,-78.6409223,0.0001178,2]
[351294258,1738506899408,-581.7290777,0.0001178,2]
[351294259,1738506899421,-312.2109223,0.0001178,2]
[351294260,1738506899445,-500.0,0.0001178,2]
[351294261,1738506899469,-500.0,0.0001178,2]
[351294262,1738506899486,-150.7590777,0.0001178,2]
[351294263,1738506899499,-615.22,0.0001178,2]
[351294264,1738506899510,-127.1309223,0.0001178,2]
[351294265,1738506899523,-372.8690777,0.0001178,2]
[351294266,1738506899534,-127.1309223,0.0001178,2]
[351294267,1738506899548,-372.8690777,0.0001178,2]
[351294268,1738506899558,-160.8109223,0.0001178,2]
[351294269,1738506899572,-904.83,0.0001178,2]
[351294270,1738506899585,-426.9390777,0.0001178,2]
[351294271,1738506899596,-73.0609223,0.0001178,2]
[351294272,1738506899615,-500.0,0.0001178,2]
[351294273,1738506899628,-817.0390777,0.0001178,2]
[351294274,1738506899639,-382.6609223,0.0001178,2]
[351294275,1738506899672,-117.3390777,0.0001178,2]
[351294276,1738506899682,-382.6609223,0.0001178,2]
[351294277,1738506899694,-39.44968296,0.0001178,2]
[351294278,1738506899706,-460.55031704,0.0001178,2]
[351294279,1738506899718,-39.44968296,0.0001178,2]
[351294280,1738506899729,-460.55031704,0.0001178,2]
[351294281,1738506899743,-971.7,0.0001178,2]
[351294282,1738506899758,-500.0,0.0001178,2]
[351294283,1738506899771,-858.42,0.0001178,2]
[351294284,1738506899783,-500.0,0.0001178,2]
[351294285,1738506899799,-716.65968296,0.0001178,2]
[351294286,1738506899809,-327.52031704,0.0001178,2]
[351294287,1738506899832,-172.47968296,0.0001178,2]
[351294288,1738506899843,-376.42031704,0.0001178,2]
[351294289,1738506899861,-500.0,0.0001178,2]
[351294290,1738506899875,-500.0,0.0001178,2]
[351294291,1738506899887,-1000.0,0.0001178,2]
[351294292,1738506899904,-985.03968296,0.0001178,2]
[351294293,1738506899914,-1295.36031704,0.0001178,2]
[351294294,1738506899927,-500.0,0.0001178,2]
[351294295,1738506900018,-1287.5,0.0001178,2]
[351294296,1738506900039,-8.80968296,0.0001178,2]
[351294297,1738506900050,-2278.96031704,0.0001178,2]
[351294298,1738506900062,-500.0,0.0001178,2]
[351294299,1738506900087,-734.57968296,0.0001178,2]
[351294300,1738506900098,-860.04031704,0.0001178,2]
[351294301,1738506900111,-500.0,0.0001178,2]
[351294302,1738506900123,-474.50968296,0.0001178,2]
[351294303,1738506900135,-25.49031704,0.0001178,2]
[351294304,1738506900149,-474.50968296,0.0001178,2]
[351294305,1738506900161,-405.82031704,0.0001178,2]
[351294306,1738506900174,-1393.52968296,0.0001178,2]
[351294307,1738506900185,-485.04031704,0.0001178,2]
[351294308,1738506900208,-162.01,0.00010137,2]
[351294309,1738506900220,-293.04968296,0.0001178,2]
[351294310,1738506900233,-205.31031704,0.0001178,2]
[351294311,1738506900246,-294.68968296,0.0001178,2]
[351294312,1738506900257,-1168.28031704,0.0001178,2]
[351294313,1738506900271,-34.43968296,0.0001178,2]
[351294314,1738506900282,-580.78031704,0.0001178,2]
[351294315,1738506900305,-500.0,0.00010958,2]
[351294316,1738506900318,-265.74,0.00010958,2]
[351294317,1738506900328,-234.26,0.0001178,2]
[351294318,1738506900351,-500.0,0.0001178,2]
[351294319,1738506900363,-62.99968296,0.0001178,2]
[351294320,1738506900374,-1429.58031704,0.0001178,2]
[351294321,1738506900394,-1390.1,0.0001178,2]
[351294322,1738506900406,-500.0,0.0001178,2]
[351294323,1738506900426,-500.0,0.0001178,2]
[351294324,1738506900439,-500.0,0.0001178,2]
[351294325,1738506900457,-1390.96968296,0.0001178,2]
[351294326,1738506900468,-661.91,0.0001178,2]
[351294327,1738506900479,-500.0,0.0001178,2]
[351294328,1738506900490,-1454.45031704,0.0001178,2]
[351294329,1738506900502,-500.0,0.0001178,2]
[351294330,1738506900524,-500.0,0.0001178,2]
[351294331,1738506900546,-765.74,0.00011095,2]
[351294332,1738506900557,-449.99968296,0.0001178,2]
[351294333,1738506900567,-500.0,0.0001178,2]
[351294334,1738506900577,-861.56,0.0001178,2]
[351294335,1738506900587,-500.0,0.0001178,2]
[351294336,1738506900598,-284.16031704,0.0001178,2]
[351294337,1738506900621,-500.0,0.00010958,2]
[351294338,1738506900633,-215.83968296,0.0001178,2]
[351294339,1738506900645,-771.15,0.0001178,2]
[351294340,1738506900656,-1604.68031704,0.0001178,2]
[351294341,1738506900672,-854.84968296,0.0001178,2]
[351294342,1738506900683,-500.0,0.0001178,2]
[351294343,1738506900694,-753.35,0.0001178,2]
[351294344,1738506900706,-1405.34031704,0.0001178,2]
[351294345,1738506900721,-109.15968296,0.0001178,2]
[351294346,1738506900732,-1725.39031704,0.0001178,2]
[351294347,1738506900747,-73.32968296,0.0001178,2]
[351294348,1738506900759,-426.67031704,0.0001178,2]
[351294349,1738506900773,-73.32968296,0.0001178,2]
[351294350,1738506900784,-254.01155665,0.0001178,2]
[351294351,1738506900796,-500.0,0.0001178,2]
[351294352,1738506900807,-500.0,0.0001178,2]
[351294353,1738506900818,-472.00876039,0.0001178,2]
[351294354,1738506900832,-27.99123961,0.0001178,2]
[351294355,1738506900843,-500.0,0.0001178,2]
[351294356,1738506900854,-250.09876039,0.0001178,2]
[351294357,1738506900871,-27.80645707,0.0001178,2]
[351294358,1738506900881,-472.19354293,0.0001178,2]
[351294359,1738506900903,-765.74,0.00011232,2]
[351294360,1738506900917,-27.80645707,0.0001178,2]
[351294361,1738506900928,-409.17354293,0.0001178,2]
[351294362,1738506900957,-500.0,0.00011095,2]
[351294363,1738506900970,-90.82645707,0.0001178,2]
[351294364,1738506900981,-301.2104966,0.0001178,2]
[351294365,1738506900994,-1378.04,0.0001178,2]
[351294366,1738506901011,-188.0295034,0.0001178,2]
[351294367,1738506901021,-311.9704966,0.0001178,2]
[351294368,1738506901033,-188.0295034,0.0001178,2]
[351294369,1738506901043,-500.0,0.0001178,2]
[351294370,1738506901053,-500.0,0.0001178,2]
[351294371,1738506901064,-500.0,0.0001178,2]
[351294372,1738506901075,-961.27,0.0001178,2]
[351294373,1738506901086,-840.49,0.0001178,2]
[351294374,1738506901096,-500.0,0.0001178,2]
[351294375,1738506901106,-500.0,0.0001178,2]
[351294376,1738506901117,-767.1,0.0001178,2]
[351294377,1738506901127,-453.7604966,0.0001178,2]
[351294378,1738506901140,-46.2395034,0.0001178,2]
[351294379,1738506901150,-615.6704966,0.0001178,2]
[351294380,1738506901163,-168.7095034,0.0001178,2]
[351294381,1738506901176,-331.2904966,0.0001178,2]
[351294382,1738506901199,-765.74,0.00011369,2]
[351294383,1738506901209,-214.7795034,0.0001178,2]
[351294384,1738506901219,-1923.9304966,0.00011817,2]
[351294385,1738506901236,-500.0,0.00011817,2]
[351294386,1738506901258,-500.0,0.00011232,2]
[351294387,1738506901268,-361.56,0.00011817,2]
[351294388,1738506901280,-500.0,0.00011817,2]
[351294389,1738506901292,-500.0,0.00011817,2]
[351294390,1738506901304,-771.15,0.00011817,2]
[351294391,1738506901351,-500.0,0.00011369,2]
[351294392,1738506901361,-765.74,0.00011506,2]
[351294393,1738506901372,-443.3595034,0.00011817,2]
[351294394,1738506901382,-150.0,0.00011834,2]
[351294395,1738506901393,-600.4304966,0.000119,2]
[351294396,1738506901459,-500.0,0.000119,2]
[351294397,1738506901471,-500.0,0.000119,2]
[351294398,1738506901510,-500.0,0.00011368,2]
[351294399,1738506901521,-253.35,0.00011643,2]
[351294400,1738506901542,-500.0,0.00011506,2]
[351294401,1738506901553,-512.39,0.00011643,2]
[351294402,1738506901564,-502.11,0.000119,2]
[351294403,1738506901576,-1798.72,0.000119,2]
[351294404,1738506901588,-500.0,0.000119,2]
[351294405,1738506901602,-500.0,0.000119,2]
[351294406,1738506901614,-500.0,0.000119,2]
[351294407,1738506901627,-500.0,0.000119,2]
[351294408,1738506901639,-500.0,0.000119,2]
[351294409,1738506901650,-500.0,0.000119,2]
[351294410,1738506901673,-500.0,0.0001178,2]
[351294411,1738506901693,-500.0,0.00011643,2]
[351294412,1738506901704,-265.74,0.0001178,2]
[351294413,1738506901714,-234.26,0.000119,2]
[351294414,1738506901725,-1867.28,0.000119,2]
[351294415,1738506901736,-500.0,0.000119,2]
[351294416,1738506901756,-500.0,0.00011094,2]
[351294417,1738506901768,-500.0,0.000119,2]
[351294418,1738506901792,-500.0,0.00011368,2]
[351294419,1738506901804,-961.27,0.000119,2]
[351294420,1738506901823,-840.49,0.000119,2]
[351294421,1738506901842,-192.6066814,0.0001178,2]
[351294422,1738506901852,-307.3933186,0.000119,2]
[351294423,1738506901863,-500.0,0.000119,2]
[351294424,1738506901879,-767.1,0.000119,2]
[351294425,1738506901891,-500.0,0.000119,2]
[351294426,1738506901903,-653.58422346,0.000119,2]
[351294427,1738506901924,-500.0,0.00011231,2]
[351294428,1738506901944,-228.45,0.00011505,2]
[351294429,1738506902277,-271.55,0.000119,2]
[351294430,1738506902317,-500.0,0.000119,2]
[351294431,1738506902337,-500.0,0.000119,2]
[351294432,1738506902348,-500.0,0.000119,2]
[351294433,1738506902359,-500.0,0.000119,2]
[351294434,1738506902372,-500.0,0.000119,2]
[351294435,1738506902383,-500.0,0.000119,2]
[351294436,1738506902407,-500.0,0.00011368,2]
[351294437,1738506902465,-500.0,0.000119,2]
[351294438,1738506902484,-500.0,0.000119,2]
[351294439,1738506902495,-527.15,0.000119,2]
[351294440,1738506902507,-500.0,0.000119,2]
[351294441,1738506902519,-500.0,0.000119,2]
[351294442,1738506902531,-679.54,0.000119,2]
[351294443,1738506902542,-500.0,0.000119,2]
[351294444,1738506902554,-500.0,0.000119,2]
[351294445,1738506902574,-500.0,0.00011505,2]
[351294446,1738506902586,-500.0,0.000119,2]
[351294447,1738506902597,-500.0,0.000119,2]
[351294448,1738506902608,-500.0,0.000119,2]
[351294449,1738506902620,-500.0,0.000119,2]
[351294450,1738506902631,-500.0,0.000119,2]
[351294451,1738506902642,-500.0,0.000119,2]
[351294452,1738506902660,-500.0,0.000119,2]
[351294453,1738506902682,-510.2516117,0.000119,2]
[351294454,1738506902694,-500.0,0.000119,2]
[351294455,1738506902718,-500.0,0.00011642,2]
[351294456,1738506902729,-500.0,0.000119,2]
[351294457,1738506902779,-1041.34,0.000119,2]
[351294458,1738506902814,-500.0,0.000119,2]
[351294459,1738506902825,-500.0,0.000119,2]
[351294460,1738506902837,-500.0,0.000119,2]
[351294461,1738506902856,-500.0,0.000119,2]
[351294462,1738506902868,-500.0,0.000119,2]
[351294463,1738506902879,-593.98,0.000119,2]
[351294464,1738506902899,-500.0,0.00011779,2]
[351294465,1738506902910,-543.71,0.000119,2]
[351294466,1738506902924,-500.0,0.000119,2]
[351294467,1738506902935,-500.0,0.000119,2]
[351294468,1738506902947,-500.0,0.000119,2]
[351294469,1738506902959,-561.48,0.000119,2]
[351294470,1738506902978,-500.0,0.000119,2]
[351294471,1738506902989,-500.0,0.000119,2]
[351294472,1738506903001,-2551.31,0.000119,2]
[351294473,1738506903020,-500.0,0.000119,2]
[351294474,1738506903035,-500.0,0.000119,2]
[351294475,1738506903054,-500.0,0.000119,2]
[351294476,1738506903065,-500.0,0.000119,2]
[351294477,1738506903077,-500.0,0.000119,2]
[351294478,1738506903098,-4671.75,0.000119,2]
[351294479,1738506903128,-500.0,0.00011368,2]
[351294480,1738506903140,-500.0,0.000119,2]
[351294481,1738506903152,-500.0,0.000119,2]
[351294482,1738506903164,-1647.85,0.000119,2]
[351294483,1738506903179,-500.0,0.000119,2]
[351294484,1738506903195,-2040.76,0.000119,2]
[351294485,1738506903217,-500.0,0.000119,2]
[351294486,1738506903230,-512.5,0.000119,2]
[351294487,1738506941197,-500.0,0.00010958,2]
[351294488,1738506941233,-500.0,0.00010958,2]
[351294489,1738506941277,-500.0,0.00010958,2]
[351294490,1738506941313,-500.0,0.00010958,2]
[351294491,1738506941344,-500.0,0.00010958,2]
[351294492,1738506941375,-661.67,0.00010958,2]
[351294493,1738506941407,-500.0,0.00010958,2]
[351294494,1738506941439,-500.0,0.00010958,2]
[351294495,1738506941475,-500.0,0.00010958,2]
[351294496,1738506941504,-500.0,0.00010958,2]
[351294497,1738506941534,-546.44,0.00010958,2]
[351294505,1738507172077,1015.03417643,0.00013698,30]
[351294508,1738507413755,500.0,0.00023,120]
[351294509,1738507481729,1000.0,0.00023,120]
[351294510,1738507520518,465.0,0.00023,120]
[351294512,1738507649936,730.21,8.343e-05,2]
[351294515,1738507832522,-1000.0,0.00010267,2]
[351294516,1738507832531,-159.98,0.00010325,2]
[351294517,1738507832541,-134.79492227,0.00010382,2]
[351294518,1738507832556,-1305.0,0.00010382,2]
[351294519,1738507832781,-411.89507773,0.00010382,2]
[351294520,1738507832791,-200.0,0.00010401,2]
[351294521,1738507832801,-250.0,0.00010428,2]
[351294522,1738507832810,-386.77,0.00010555,2]
[351294523,1738507832819,-575.12,0.00010596,2]
[351294524,1738507832829,-730.21,0.00010607,2]
[351294525,1738507832839,-561.02,0.00010655,2]
[351294526,1738507832848,-150.0,0.00010932,2]
[351294527,1738507832858,-150.0,0.00010957,2]
[351294528,1738507832868,-300.0,0.00010957,2]
[351294529,1738507832877,-500.0,0.00010958,2]
[351294530,1738507832889,-500.0,0.00010958,2]
[351294531,1738507832898,-500.0,0.00010958,2]
[351294532,1738507832907,-500.0,0.00010958,2]
[351294533,1738507832918,-500.0,0.00010958,2]
[351294534,1738507832927,-500.0,0.00010958,2]
[351294535,1738507832936,-476.03258157,0.00010958,2]
[351294536,1738507832945,-556.70519754,0.00010958,2]
[351294537,1738507832955,-503.15177996,0.00010958,2]
[351294538,1738507832964,-500.0,0.00010958,2]
[351294539,1738507832974,-500.0,0.00010958,2]
[351294540,1738507832983,-500.0,0.00010958,2]
[351294541,1738507832993,-500.0,0.00010958,2]
[351294542,1738507833003,-500.0,0.00010958,2]
[351294543,1738507833012,-501.37033738,0.00010958,2]
[351294544,1738507833022,-500.0,0.00010958,2]
[351294545,1738507833032,-500.0,0.00010958,2]
[351294546,1738507833042,-500.0,0.00010958,2]
[351294547,1738507833052,-500.0,0.00010958,2]
[351294548,1738507833063,-500.0,0.00010958,2]
[351294549,1738507833073,-500.0,0.00010958,2]
[351294550,1738507833083,-500.0,0.00010958,2]
[351294551,1738507833093,-293.72502581,0.00010958,2]
[351294552,1738507833110,-206.27497419,0.00010958,2]
[351294553,1738507833120,-179.64489315,0.00010958,2]
[351294554,1738507833132,-320.35510685,0.00010958,2]
[351294555,1738507833142,-500.0,0.00010958,2]
[351294556,1738507833152,-478.23552915,0.00010958,2]
[351294557,1738507833177,-21.76447085,0.00010958,2]
[351294558,1738507833187,-500.0,0.00010958,2]
[351294559,1738507833197,-67.46052665,0.00010958,2]
[351294563,1738507838653,-432.53947335,0.00010958,2]
[351294564,1738507838662,-500.0,0.00010958,2]
[351294565,1738507838680,-63.39726724,0.00010958,2]
[351294573,1738507840598,-436.60273276,0.00010958,2]
[351294575,1738507840608,-63.39726724,0.00010958,2]
[351294576,1738507840621,-436.60273276,0.00010958,2]
[351294578,1738507840630,-500.0,0.00010958,2]
[351294579,1738507840639,-754.29,0.00010958,2]
[351294580,1738507840649,-500.0,0.00010958,2]
[351294581,1738507840658,-500.0,0.00010958,2]
[351294582,1738507840668,-500.0,0.00010958,2]
[351294583,1738507840678,-500.0,0.00010958,2]
[351294584,1738507840688,-500.0,0.00010958,2]
[351294585,1738507840698,-500.0,0.00010958,2]
[351294586,1738507840708,-500.0,0.00010958,2]
[351294587,1738507840718,-500.0,0.00010958,2]
[351294588,1738507840728,-500.0,0.00010958,2]
[351294589,1738507840742,-500.0,0.00010958,2]
[351294590,1738507840753,-614.03,0.00010958,2]
[351294591,1738507840763,-500.0,0.00010958,2]
[351294592,1738507840774,-500.0,0.00010958,2]
[351294593,1738507840783,-500.0,0.00010958,2]
[351294594,1738507840793,-695.64,0.00010958,2]
[351294595,1738507840802,-500.0,0.00010958,2]
[351294596,1738507840813,-500.0,0.00010958,2]
[351294597,1738507840823,-500.0,0.00010958,2]
[351294598,1738507840834,-666.06,0.00010958,2]
[351294599,1738507840844,-500.0,0.00010958,2]
[351294600,1738507840854,-500.0,0.00010958,2]
[351294601,1738507840863,-500.0,0.00010958,2]
[351294602,1738507840873,-500.0,0.00010958,2]
[351294603,1738507840882,-500.0,0.00010958,2]
[351294604,1738507840892,-509.08881116,0.00010958,2]
[351294605,1738507840903,-500.0,0.00010958,2]
[351294606,1738507840912,-500.0,0.00010958,2]
[351294607,1738507840921,-500.0,0.00010958,2]
[351294608,1738507840931,-500.0,0.00010958,2]
[351294609,1738507840941,-500.0,0.00010958,2]
[351294610,1738507840951,-500.0,0.00010958,2]
[351294611,1738507840961,-500.0,0.00010958,2]
[351294612,1738507840971,-500.0,0.00010958,2]
[351294613,1738507840981,-500.0,0.00010958,2]
[351294614,1738507840992,-500.0,0.00010958,2]
[351294615,1738507841004,-500.0,0.00010958,2]
[351294616,1738507841014,-500.0,0.00010958,2]
[351294617,1738507841023,-500.0,0.00010958,2]
[351294618,1738507841033,-999.57,0.00010958,2]
[351294619,1738507841043,-500.0,0.00010958,2]
[351294620,1738507841053,-500.0,0.00010958,2]
[351294621,1738507841063,-500.0,0.00010958,2]
[351294622,1738507841073,-818.77,0.00010958,2]
[351294623,1738507841083,-500.0,0.00010958,2]
[351294624,1738507841092,-500.0,0.00010958,2]
[351294625,1738507841102,-500.0,0.00010958,2]
[351294626,1738507841112,-500.0,0.00010958,2]
[351294627,1738507841122,-500.0,0.00010958,2]
[351294628,1738507841132,-511.06832147,0.00010958,2]
[351294629,1738507841143,-500.0,0.00010958,2]
[351294630,1738507841154,-500.0,0.00010958,2]
[351294631,1738507841163,-1026.47,0.00010958,2]
[351294632,1738507841173,-500.0,0.00010958,2]
[351294633,1738507841183,-500.0,0.00010958,2]
[351294634,1738507841192,-500.0,0.00010958,2]
[351294635,1738507841203,-500.0,0.00010958,2]
[351294636,1738507841212,-522.19900892,0.00010958,2]
[351294637,1738507841222,-500.0,0.00010958,2]
[351294638,1738507841231,-500.0,0.00010958,2]
[351294639,1738507841241,-500.0,0.00010958,2]
[351294640,1738507841251,-500.0,0.00010958,2]
[351294641,1738507841261,-746.72,0.00010958,2]
[351294642,1738507841271,-500.0,0.00010958,2]
[351294643,1738507841281,-500.0,0.00010958,2]
[351294644,1738507841291,-500.0,0.00010958,2]
[351294645,1738507841300,-740.56,0.00010958,2]
[351294646,1738507841312,-500.0,0.00010958,2]
[351294647,1738507841322,-500.0,0.00010958,2]
[351294648,1738507841332,-500.0,0.00010958,2]
[351294649,1738507841342,-500.0,0.00010958,2]
[351294651,1738507841352,-500.0,0.00010958,2]
[351294652,1738507841362,-500.0,0.00010958,2]
[351294654,1738507841371,-500.0,0.00010958,2]
[351294655,1738507841381,-500.0,0.00010958,2]
[351294657,1738507841390,-500.0,0.00010958,2]
[351294659,1738507841400,-500.0,0.00010958,2]
[351294660,1738507841410,-226.79861655,0.00010958,2]
[351294661,1738507841419,-500.0,0.00010958,2]
[351294662,1738507841428,-500.0,0.00010958,2]
[351294663,1738507841438,-500.0,0.00010958,2]
[351294664,1738507841448,-500.0,0.00010958,2]
[351294665,1738507841458,-500.0,0.00010958,2]
[351294666,1738507841467,-518.64871375,0.00010958,2]
[351294667,1738507841477,-500.0,0.00010958,2]
[351294668,1738507841487,-500.0,0.00010958,2]
[351294669,1738507841498,-500.0,0.00010958,2]
[351294670,1738507841507,-500.0,0.00010958,2]
[351294671,1738507841517,-552.85609318,0.00010958,2]
[351294672,1738507841805,-635.47328765,0.00010958,2]